[Event "Early-Titled-Tuesday-Blitz-June-18-2024"]
[Site "Chess.com"]
[Date "2024.06.18"]
[Round "6"]
[White "betta2004"]
[Black "szefru"]
[Result "0-1"]
[WhiteElo "2466"]
[BlackElo "2322"]
[TimeControl "180+1"]
[EndTime "9:07:51 PDT"]
[Termination "szefru won by resignation"]

1. Nf3 {[%clk 0:02:35.4]} 1... Nf6 {[%clk 0:02:59.1]} 2. e3 {[%clk 0:02:35.6]}
2... d5 {[%clk 0:02:58.8]} 3. b3 {[%clk 0:02:36.1]} 3... g6 {[%clk 0:02:59]} 4.
Bb2 {[%clk 0:02:36.7]} 4... Bg7 {[%clk 0:02:59.7]} 5. d4 {[%clk 0:02:37]} 5...
O-O {[%clk 0:03:00.3]} 6. Nbd2 {[%clk 0:02:37.6]} 6... Ne4 {[%clk 0:02:55.8]} 7.
Bd3 {[%clk 0:02:37.9]} 7... Nxd2 {[%clk 0:02:45.5]} 8. Qxd2 {[%clk 0:02:38]}
8... c5 {[%clk 0:02:46]} 9. h4 {[%clk 0:02:37.1]} 9... h5 {[%clk 0:02:42.4]} 10.
O-O-O {[%clk 0:02:36.5]} 10... c4 {[%clk 0:02:34.7]} 11. bxc4 {[%clk 0:02:35.6]}
11... dxc4 {[%clk 0:02:35.6]} 12. Bxc4 {[%clk 0:02:36.5]} 12... b5 {[%clk
0:02:21.8]} 13. Bb3 {[%clk 0:02:22.8]} 13... a5 {[%clk 0:02:20.4]} 14. Ne5
{[%clk 0:02:18.2]} 14... a4 {[%clk 0:01:39.2]} 15. Nxf7 {[%clk 0:02:14.9]} 15...
Rxf7 {[%clk 0:01:38.9]} 16. Bxf7+ {[%clk 0:02:15.8]} 16... Kxf7 {[%clk
0:01:38.9]} 17. Qe2 {[%clk 0:02:16.7]} 17... Qd5 {[%clk 0:01:28.6]} 18. a3
{[%clk 0:02:07.9]} 18... Bb7 {[%clk 0:01:18.5]} 19. f3 {[%clk 0:02:04.8]} 19...
b4 {[%clk 0:01:16.2]} 20. e4 {[%clk 0:01:56.7]} 20... Qa2 {[%clk 0:01:13.3]} 21.
Qb5 {[%clk 0:01:55]} 21... Bh6+ {[%clk 0:00:57]} 22. f4 {[%clk 0:01:49.2]} 22...
Bxf4+ {[%clk 0:00:56.3]} 23. Rd2 {[%clk 0:01:49.7]} 23... Bxd2+ {[%clk
0:00:50.1]} 24. Kxd2 {[%clk 0:01:50.6]} 24... Qxb2 {[%clk 0:00:48.3]} 25. Rf1+
{[%clk 0:01:50.6]} 25... Ke6 {[%clk 0:00:28.2]} 26. Qd5+ {[%clk 0:00:43]} 26...
Bxd5 {[%clk 0:00:27.5]} 0-1

[Event "Early-Titled-Tuesday-Blitz-June-18-2024"]
[Site "Chess.com"]
[Date "2024.06.18"]
[Round "6"]
[White "Rutricks"]
[Black "Vaathi_Coming"]
[Result "0-1"]
[WhiteElo "2754"]
[BlackElo "2896"]
[TimeControl "180+1"]
[EndTime "9:07:53 PDT"]
[Termination "Vaathi_Coming won by resignation"]

1. c4 {[%clk 0:03:00.9]} 1... c6 {[%clk 0:02:56]} 2. d4 {[%clk 0:03:00.5]} 2...
d5 {[%clk 0:02:55.9]} 3. Nf3 {[%clk 0:03:01.1]} 3... Nf6 {[%clk 0:02:56.2]} 4.
Nc3 {[%clk 0:03:01.5]} 4... e6 {[%clk 0:02:55.9]} 5. e3 {[%clk 0:03:01.7]} 5...
g6 {[%clk 0:02:54.5]} 6. Bd3 {[%clk 0:03:01.8]} 6... Bg7 {[%clk 0:02:54.7]} 7.
O-O {[%clk 0:03:02.5]} 7... O-O {[%clk 0:02:54.7]} 8. b3 {[%clk 0:03:02.9]} 8...
Nbd7 {[%clk 0:02:54.3]} 9. Bb2 {[%clk 0:03:03.2]} 9... Re8 {[%clk 0:02:54.2]}
10. e4 {[%clk 0:03:03.3]} 10... dxc4 {[%clk 0:02:52.3]} 11. Bxc4 {[%clk
0:02:53.1]} 11... b5 {[%clk 0:02:49.2]} 12. Bd3 {[%clk 0:02:53.5]} 12... e5
{[%clk 0:02:46.1]} 13. d5 {[%clk 0:02:52.8]} 13... b4 {[%clk 0:02:43.5]} 14.
dxc6 {[%clk 0:02:21.7]} 14... Nc5 {[%clk 0:02:43]} 15. Nd5 {[%clk 0:02:21.9]}
15... Nxd5 {[%clk 0:02:42.6]} 16. exd5 {[%clk 0:02:22.4]} 16... Nxd3 {[%clk
0:02:42.9]} 17. Qxd3 {[%clk 0:02:18.3]} 17... e4 {[%clk 0:02:43.4]} 18. Qd2
{[%clk 0:02:12.5]} 18... Bxb2 {[%clk 0:02:40.1]} 19. Qxb2 {[%clk 0:02:02]} 19...
exf3 {[%clk 0:02:40.4]} 20. Rfe1 {[%clk 0:02:02.7]} 20... Rxe1+ {[%clk
0:02:30.8]} 21. Rxe1 {[%clk 0:02:02.2]} 21... Bf5 {[%clk 0:02:01.1]} 22. Qe5
{[%clk 0:01:29.6]} 22... Qg5 {[%clk 0:02:00.1]} 23. Qg3 {[%clk 0:00:54]} 23...
Qd2 {[%clk 0:01:57.6]} 24. Rf1 {[%clk 0:00:43.4]} 24... Qxd5 {[%clk 0:01:55.6]}
25. c7 {[%clk 0:00:42]} 25... Re8 {[%clk 0:01:51.4]} 26. gxf3 {[%clk 0:00:32.3]}
26... Qd2 {[%clk 0:01:40.2]} 27. Qh4 {[%clk 0:00:25.9]} 27... Qd3 {[%clk
0:01:20.3]} 28. Rc1 {[%clk 0:00:21.6]} 28... Qxf3 {[%clk 0:01:18.8]} 29. Qxb4
{[%clk 0:00:17.8]} 29... Bh3 {[%clk 0:01:07.9]} 0-1

[Event "Early-Titled-Tuesday-Blitz-June-18-2024"]
[Site "Chess.com"]
[Date "2024.06.18"]
[Round "6"]
[White "Flawless_Fighter"]
[Black "doublesik"]
[Result "1-0"]
[WhiteElo "2805"]
[BlackElo "2571"]
[TimeControl "180+1"]
[EndTime "9:08:03 PDT"]
[Termination "Flawless_Fighter won by resignation"]

1. Nf3 {[%clk 0:03:00.9]} 1... d5 {[%clk 0:02:52.4]} 2. d4 {[%clk 0:03:00.3]}
2... Nf6 {[%clk 0:02:44]} 3. g3 {[%clk 0:03:00.2]} 3... Bf5 {[%clk 0:02:41.9]}
4. Bg2 {[%clk 0:03:00.2]} 4... h6 {[%clk 0:02:41.5]} 5. O-O {[%clk 0:03:00]}
5... e6 {[%clk 0:02:41.5]} 6. c4 {[%clk 0:03:00.7]} 6... c6 {[%clk 0:02:40.8]}
7. Nc3 {[%clk 0:03:01.2]} 7... Nbd7 {[%clk 0:02:41.3]} 8. Nd2 {[%clk 0:03:01.9]}
8... Be7 {[%clk 0:02:40.2]} 9. Re1 {[%clk 0:03:01.8]} 9... O-O {[%clk
0:02:32.4]} 10. e4 {[%clk 0:03:01.8]} 10... dxe4 {[%clk 0:02:32.9]} 11. Ndxe4
{[%clk 0:03:02.7]} 11... Nxe4 {[%clk 0:02:29.3]} 12. Nxe4 {[%clk 0:03:03.6]}
12... Nf6 {[%clk 0:02:14.4]} 13. Nc3 {[%clk 0:03:03.5]} 13... Qd7 {[%clk
0:02:03]} 14. h3 {[%clk 0:03:01.9]} 14... Rfd8 {[%clk 0:02:00.3]} 15. Be3 {[%clk
0:03:02.2]} 15... Qc7 {[%clk 0:01:54.2]} 16. Qb3 {[%clk 0:02:58.1]} 16... Rac8
{[%clk 0:01:45.6]} 17. Rad1 {[%clk 0:02:56.2]} 17... b6 {[%clk 0:01:41.3]} 18.
Bf4 {[%clk 0:02:54.2]} 18... Qb7 {[%clk 0:01:34.1]} 19. Qa4 {[%clk 0:02:52.4]}
19... a6 {[%clk 0:01:21.9]} 20. Qb3 {[%clk 0:02:24.8]} 20... Qa7 {[%clk
0:01:08.2]} 21. a4 {[%clk 0:02:18.3]} 21... c5 {[%clk 0:00:55.3]} 22. d5 {[%clk
0:02:14.1]} 22... Bd6 {[%clk 0:00:43.2]} 23. Bxd6 {[%clk 0:01:50.5]} 23... Rxd6
{[%clk 0:00:42.7]} 24. dxe6 {[%clk 0:01:51]} 24... Rxe6 {[%clk 0:00:39.6]} 25.
Rxe6 {[%clk 0:01:42.5]} 25... Bxe6 {[%clk 0:00:40.5]} 26. Nd5 {[%clk 0:01:41.2]}
26... Nxd5 {[%clk 0:00:14.5]} 27. cxd5 {[%clk 0:01:39.6]} 27... Bd7 {[%clk
0:00:15.2]} 28. d6 {[%clk 0:01:37.9]} 28... c4 {[%clk 0:00:14.7]} 29. Qe3 {[%clk
0:01:36.3]} 29... Re8 {[%clk 0:00:13.1]} 30. Qd4 {[%clk 0:01:35.5]} 30... Bxa4
{[%clk 0:00:11.2]} 31. Rd2 {[%clk 0:01:28.5]} 31... Bd7 {[%clk 0:00:09]} 32.
Qxc4 {[%clk 0:01:26.6]} 32... b5 {[%clk 0:00:09.5]} 33. Qc7 {[%clk 0:01:24.2]}
33... Qxc7 {[%clk 0:00:06.2]} 34. dxc7 {[%clk 0:01:25.1]} 34... Bc8 {[%clk
0:00:05.6]} 35. Rd8 {[%clk 0:01:21.1]} 35... Kf8 {[%clk 0:00:06]} 36. Bc6 {[%clk
0:01:21.8]} 1-0

[Event "Early-Titled-Tuesday-Blitz-June-18-2024"]
[Site "Chess.com"]
[Date "2024.06.18"]
[Round "6"]
[White "Zohid6"]
[Black "Mikasinski"]
[Result "1-0"]
[WhiteElo "2980"]
[BlackElo "2712"]
[TimeControl "180+1"]
[EndTime "9:08:07 PDT"]
[Termination "Zohid6 won by resignation"]

1. e4 {[%clk 0:03:00.9]} 1... c5 {[%clk 0:02:58.9]} 2. Nf3 {[%clk 0:03:00.8]}
2... d6 {[%clk 0:02:59.5]} 3. Bb5+ {[%clk 0:03:00.3]} 3... Bd7 {[%clk
0:02:59.5]} 4. Bxd7+ {[%clk 0:02:59.2]} 4... Qxd7 {[%clk 0:03:00.4]} 5. c4
{[%clk 0:02:59.1]} 5... Nc6 {[%clk 0:03:00.9]} 6. Nc3 {[%clk 0:02:59.3]} 6...
Nf6 {[%clk 0:03:01.5]} 7. d4 {[%clk 0:02:56.5]} 7... cxd4 {[%clk 0:03:02.4]} 8.
Nxd4 {[%clk 0:02:57.3]} 8... g6 {[%clk 0:03:03]} 9. f3 {[%clk 0:02:56.9]} 9...
Bg7 {[%clk 0:03:03.4]} 10. Be3 {[%clk 0:02:57]} 10... O-O {[%clk 0:03:03.7]} 11.
O-O {[%clk 0:02:57.3]} 11... Rfd8 {[%clk 0:03:04]} 12. Qd3 {[%clk 0:02:56.8]}
12... Rac8 {[%clk 0:02:57.6]} 13. b3 {[%clk 0:02:56.6]} 13... a6 {[%clk
0:02:57.6]} 14. Rac1 {[%clk 0:02:49]} 14... e6 {[%clk 0:02:52.3]} 15. Rfd1
{[%clk 0:02:47.9]} 15... d5 {[%clk 0:02:50.5]} 16. cxd5 {[%clk 0:02:29.4]} 16...
exd5 {[%clk 0:02:47.4]} 17. Nxc6 {[%clk 0:02:29.3]} 17... Rxc6 {[%clk
0:02:46.8]} 18. Nxd5 {[%clk 0:02:23.8]} 18... Nxd5 {[%clk 0:02:42.4]} 19. Qxd5
{[%clk 0:02:00.5]} 19... Qxd5 {[%clk 0:02:34.2]} 20. Rxd5 {[%clk 0:01:56.8]}
20... Rxd5 {[%clk 0:02:27.3]} 21. exd5 {[%clk 0:01:56.7]} 21... Rxc1+ {[%clk
0:02:11.3]} 22. Bxc1 {[%clk 0:01:57.6]} 22... Bd4+ {[%clk 0:01:48.4]} 23. Kf1
{[%clk 0:01:57.2]} 23... Kf8 {[%clk 0:01:49.1]} 24. Ke2 {[%clk 0:01:57.2]} 24...
Ke7 {[%clk 0:01:48.9]} 25. Kd3 {[%clk 0:01:57.1]} 25... Bg1 {[%clk 0:01:44.1]}
26. Ba3+ {[%clk 0:01:56.5]} 26... Kd7 {[%clk 0:01:43.8]} 27. h3 {[%clk
0:01:55.6]} 27... b5 {[%clk 0:01:38.2]} 28. Bb4 {[%clk 0:01:52.6]} 28... Bb6
{[%clk 0:01:37]} 29. a4 {[%clk 0:01:52.4]} 29... f5 {[%clk 0:01:30.3]} 30. g4
{[%clk 0:01:50.4]} 30... Bf2 {[%clk 0:01:15.5]} 31. axb5 {[%clk 0:01:41.7]}
31... axb5 {[%clk 0:01:15.4]} 32. Ke2 {[%clk 0:01:37.8]} 32... Bg3 {[%clk
0:01:13.2]} 33. Ke3 {[%clk 0:01:35.8]} 33... Be5 {[%clk 0:01:10.5]} 34. Kf2
{[%clk 0:01:33.1]} 34... Bf4 {[%clk 0:01:09.9]} 35. Ke2 {[%clk 0:01:32.5]} 35...
Bg3 {[%clk 0:01:07]} 36. Kd3 {[%clk 0:01:28.8]} 36... Bf2 {[%clk 0:01:06.8]} 37.
Bf8 {[%clk 0:01:24.2]} 37... Bg1 {[%clk 0:01:02.4]} 38. Kc3 {[%clk 0:01:23.7]}
38... Kc7 {[%clk 0:00:58]} 39. Kb4 {[%clk 0:01:11.4]} 39... Kb6 {[%clk
0:00:57.2]} 40. Be7 {[%clk 0:01:11.1]} 40... Bd4 {[%clk 0:00:55.5]} 41. Bd8+
{[%clk 0:01:10.9]} 41... Ka6 {[%clk 0:00:54.4]} 42. d6 {[%clk 0:01:05.5]} 42...
Kb7 {[%clk 0:00:37]} 43. Kxb5 {[%clk 0:01:05]} 43... Kc8 {[%clk 0:00:37.6]} 44.
Bc7 {[%clk 0:00:58.9]} 1-0

[Event "Early-Titled-Tuesday-Blitz-June-18-2024"]
[Site "Chess.com"]
[Date "2024.06.18"]
[Round "6"]
[White "ChessSwole"]
[Black "simplerXiao"]
[Result "1-0"]
[WhiteElo "2707"]
[BlackElo "2527"]
[TimeControl "180+1"]
[EndTime "9:08:09 PDT"]
[Termination "ChessSwole won by resignation"]

1. e4 {[%clk 0:03:00.9]} 1... g6 {[%clk 0:02:56.4]} 2. d4 {[%clk 0:03:00.6]}
2... Bg7 {[%clk 0:02:57.1]} 3. Nf3 {[%clk 0:03:01.1]} 3... c6 {[%clk 0:02:57.3]}
4. Bd3 {[%clk 0:03:01]} 4... d6 {[%clk 0:02:57.9]} 5. Nbd2 {[%clk 0:03:00.7]}
5... Nf6 {[%clk 0:02:58.5]} 6. O-O {[%clk 0:03:01]} 6... O-O {[%clk 0:02:59.2]}
7. Re1 {[%clk 0:03:01.4]} 7... Nbd7 {[%clk 0:02:58.3]} 8. c3 {[%clk 0:02:59.9]}
8... e5 {[%clk 0:02:58.6]} 9. h3 {[%clk 0:03:00.3]} 9... Qc7 {[%clk 0:02:58.1]}
10. a4 {[%clk 0:03:00.4]} 10... Rb8 {[%clk 0:02:55.5]} 11. a5 {[%clk 0:03:00.3]}
11... b5 {[%clk 0:02:55.6]} 12. axb6 {[%clk 0:02:59.2]} 12... axb6 {[%clk
0:02:55.6]} 13. Nf1 {[%clk 0:02:57.6]} 13... b5 {[%clk 0:02:56]} 14. Ng3 {[%clk
0:02:54.7]} 14... b4 {[%clk 0:02:49.6]} 15. Be3 {[%clk 0:02:54.6]} 15... bxc3
{[%clk 0:02:47]} 16. bxc3 {[%clk 0:02:55.5]} 16... c5 {[%clk 0:02:46.5]} 17.
dxe5 {[%clk 0:02:52.6]} 17... dxe5 {[%clk 0:02:40.1]} 18. Qe2 {[%clk 0:02:40.1]}
18... Nb6 {[%clk 0:02:34.8]} 19. Ra5 {[%clk 0:02:32.9]} 19... c4 {[%clk
0:02:30.4]} 20. Bc2 {[%clk 0:02:29.9]} 20... Nfd7 {[%clk 0:02:17.1]} 21. Rea1
{[%clk 0:02:21.3]} 21... Bb7 {[%clk 0:02:14.7]} 22. h4 {[%clk 0:02:13.3]} 22...
h5 {[%clk 0:02:06.8]} 23. Ng5 {[%clk 0:02:06.5]} 23... Ra8 {[%clk 0:02:03.7]}
24. Rxa8 {[%clk 0:01:51]} 24... Rxa8 {[%clk 0:02:03.1]} 25. Rb1 {[%clk
0:01:51.9]} 25... Na4 {[%clk 0:01:50.1]} 26. Rb4 {[%clk 0:01:28.2]} 26... Nab6
{[%clk 0:01:37.3]} 27. Nxh5 {[%clk 0:01:15.9]} 27... gxh5 {[%clk 0:01:35.9]} 28.
Qxh5 {[%clk 0:01:16.5]} 28... Nf6 {[%clk 0:01:35.2]} 29. Bxb6 {[%clk 0:01:16.5]}
29... Ra1+ {[%clk 0:01:10.1]} 30. Kh2 {[%clk 0:01:16.2]} 30... Qd7 {[%clk
0:01:07.3]} 31. Qf3 {[%clk 0:01:11]} 31... Qd2 {[%clk 0:00:37.5]} 32. Be3 {[%clk
0:00:49.7]} 32... Qxc2 {[%clk 0:00:33.2]} 33. Rxb7 {[%clk 0:00:49.6]} 33... Qxc3
{[%clk 0:00:26]} 34. Rb8+ {[%clk 0:00:49.1]} 34... Bf8 {[%clk 0:00:25.5]} 35.
Qxf6 {[%clk 0:00:49]} 1-0

[Event "Early-Titled-Tuesday-Blitz-June-18-2024"]
[Site "Chess.com"]
[Date "2024.06.18"]
[Round "6"]
[White "David_ATM"]
[Black "unkiyto"]
[Result "1/2-1/2"]
[WhiteElo "2428"]
[BlackElo "2687"]
[TimeControl "180+1"]
[EndTime "9:08:11 PDT"]
[Termination "Game drawn by repetition"]

1. e4 {[%clk 0:03:00.9]} 1... c5 {[%clk 0:02:59.6]} 2. c3 {[%clk 0:03:01]} 2...
Nf6 {[%clk 0:02:56.6]} 3. e5 {[%clk 0:03:01.1]} 3... Nd5 {[%clk 0:02:56.8]} 4.
d4 {[%clk 0:03:02]} 4... cxd4 {[%clk 0:02:57.3]} 5. Nf3 {[%clk 0:03:02.9]} 5...
e6 {[%clk 0:02:53.8]} 6. cxd4 {[%clk 0:03:03.8]} 6... d6 {[%clk 0:02:53.7]} 7.
Bc4 {[%clk 0:02:59.6]} 7... Be7 {[%clk 0:02:52.3]} 8. O-O {[%clk 0:02:59.3]}
8... O-O {[%clk 0:02:52.2]} 9. Qe2 {[%clk 0:02:59.6]} 9... b6 {[%clk 0:02:51]}
10. Nc3 {[%clk 0:02:59.3]} 10... Nxc3 {[%clk 0:02:50]} 11. bxc3 {[%clk
0:03:00.2]} 11... Qc7 {[%clk 0:02:50.4]} 12. Bd3 {[%clk 0:03:00]} 12... Bb7
{[%clk 0:02:47.3]} 13. h4 {[%clk 0:02:53]} 13... Nd7 {[%clk 0:02:37.3]} 14. Re1
{[%clk 0:02:42.4]} 14... dxe5 {[%clk 0:02:32.8]} 15. Nxe5 {[%clk 0:02:37.2]}
15... Nxe5 {[%clk 0:02:32.7]} 16. dxe5 {[%clk 0:02:38.1]} 16... Qc6 {[%clk
0:02:26.7]} 17. Be4 {[%clk 0:01:56.9]} 17... Qxe4 {[%clk 0:02:25.7]} 18. Qxe4
{[%clk 0:01:55.1]} 18... Bxe4 {[%clk 0:02:26.6]} 19. Rxe4 {[%clk 0:01:55.6]}
19... Rac8 {[%clk 0:02:22.2]} 20. c4 {[%clk 0:01:49.6]} 20... Rfd8 {[%clk
0:02:21.3]} 21. Be3 {[%clk 0:01:40.2]} 21... Rc7 {[%clk 0:02:19.9]} 22. a4
{[%clk 0:01:40]} 22... h6 {[%clk 0:01:50.1]} 23. a5 {[%clk 0:01:39.5]} 23... Bc5
{[%clk 0:01:45.6]} 24. axb6 {[%clk 0:01:29.2]} 24... axb6 {[%clk 0:01:46.5]} 25.
Bxc5 {[%clk 0:00:50.5]} 25... Rxc5 {[%clk 0:01:47.4]} 26. Rb1 {[%clk 0:00:47.4]}
26... Rdc8 {[%clk 0:01:40.5]} 27. Rxb6 {[%clk 0:00:42.1]} 27... Rxc4 {[%clk
0:01:40.2]} 28. Rxc4 {[%clk 0:00:23.6]} 28... Rxc4 {[%clk 0:01:41.1]} 29. Rb8+
{[%clk 0:00:24.1]} 29... Kh7 {[%clk 0:01:41.2]} 30. Rf8 {[%clk 0:00:24.8]} 30...
Rxh4 {[%clk 0:01:36.4]} 31. Rxf7 {[%clk 0:00:24.7]} 31... Kg6 {[%clk 0:01:31.2]}
32. Re7 {[%clk 0:00:20.3]} 32... Re4 {[%clk 0:01:27.1]} 33. Rxe6+ {[%clk
0:00:19.8]} 33... Kf7 {[%clk 0:01:27.5]} 34. Ra6 {[%clk 0:00:16]} 34... Rxe5
{[%clk 0:01:27.6]} 35. g3 {[%clk 0:00:16.2]} 35... Rf5 {[%clk 0:01:27.2]} 36.
Kg2 {[%clk 0:00:16.5]} 36... Re5 {[%clk 0:01:24.9]} 37. f4 {[%clk 0:00:16.7]}
37... Rc5 {[%clk 0:01:23.9]} 38. Kf3 {[%clk 0:00:17]} 38... Rc3+ {[%clk
0:01:23.8]} 39. Kg4 {[%clk 0:00:17.1]} 39... Rb3 {[%clk 0:01:24.1]} 40. Ra5
{[%clk 0:00:16.7]} 40... Kf6 {[%clk 0:01:23.7]} 41. Ra6+ {[%clk 0:00:16.8]}
41... Kf7 {[%clk 0:01:24.2]} 42. Ra5 {[%clk 0:00:17.3]} 42... g6 {[%clk
0:01:21.7]} 43. Ra7+ {[%clk 0:00:16.7]} 43... Kf6 {[%clk 0:01:18.1]} 44. Ra6+
{[%clk 0:00:17.2]} 44... Kg7 {[%clk 0:01:18.4]} 45. Ra7+ {[%clk 0:00:17.7]}
45... Kg8 {[%clk 0:01:18.7]} 46. Ra8+ {[%clk 0:00:18.1]} 46... Kf7 {[%clk
0:01:18.2]} 47. Ra7+ {[%clk 0:00:18.4]} 47... Kf8 {[%clk 0:01:18.3]} 48. Ra8+
{[%clk 0:00:18.2]} 48... Kf7 {[%clk 0:01:18.9]} 49. Ra7+ {[%clk 0:00:17.3]}
1/2-1/2

[Event "Early-Titled-Tuesday-Blitz-June-18-2024"]
[Site "Chess.com"]
[Date "2024.06.18"]
[Round "6"]
[White "Meri-Arabidze"]
[Black "annazero"]
[Result "1-0"]
[WhiteElo "2671"]
[BlackElo "2532"]
[TimeControl "180+1"]
[EndTime "9:08:13 PDT"]
[Termination "Meri-Arabidze won by resignation"]

1. Nf3 {[%clk 0:03:00.9]} 1... g6 {[%clk 0:03:00]} 2. g3 {[%clk 0:03:00.3]} 2...
Bg7 {[%clk 0:02:59.5]} 3. Bg2 {[%clk 0:03:00.5]} 3... Nf6 {[%clk 0:03:00.4]} 4.
O-O {[%clk 0:03:00.3]} 4... O-O {[%clk 0:03:01.3]} 5. d4 {[%clk 0:02:59.1]} 5...
d5 {[%clk 0:03:01.4]} 6. Nbd2 {[%clk 0:02:52.9]} 6... c6 {[%clk 0:02:57.4]} 7.
b3 {[%clk 0:02:52]} 7... c5 {[%clk 0:02:56.9]} 8. Bb2 {[%clk 0:02:50]} 8... cxd4
{[%clk 0:02:57]} 9. Nxd4 {[%clk 0:02:49.6]} 9... Nc6 {[%clk 0:02:57.5]} 10. Nxc6
{[%clk 0:02:49.1]} 10... bxc6 {[%clk 0:02:58.4]} 11. c4 {[%clk 0:02:49.5]} 11...
Bf5 {[%clk 0:02:54.7]} 12. Nf3 {[%clk 0:02:44.4]} 12... Be4 {[%clk 0:02:53.7]}
13. Rc1 {[%clk 0:02:35.3]} 13... Qa5 {[%clk 0:02:48.6]} 14. a3 {[%clk
0:02:35.2]} 14... Rfd8 {[%clk 0:02:45.5]} 15. b4 {[%clk 0:02:34.9]} 15... Qa6
{[%clk 0:02:42.6]} 16. c5 {[%clk 0:02:33]} 16... Qb7 {[%clk 0:02:35.1]} 17. e3
{[%clk 0:02:02]} 17... a5 {[%clk 0:02:33.5]} 18. Bc3 {[%clk 0:02:02.6]} 18...
axb4 {[%clk 0:02:33.4]} 19. axb4 {[%clk 0:02:02.9]} 19... Ra2 {[%clk 0:02:29.5]}
20. Qb3 {[%clk 0:01:49.5]} 20... Rda8 {[%clk 0:02:27.4]} 21. Ra1 {[%clk
0:01:49.5]} 21... Rxa1 {[%clk 0:02:20.6]} 22. Rxa1 {[%clk 0:01:50.4]} 22...
Rxa1+ {[%clk 0:02:19.3]} 23. Bxa1 {[%clk 0:01:51.3]} 23... Bd3 {[%clk
0:02:19.8]} 24. Qxd3 {[%clk 0:01:47.9]} 24... Qxb4 {[%clk 0:02:20.3]} 25. Bd4
{[%clk 0:01:39.7]} 25... Bf8 {[%clk 0:02:12.2]} 26. Ne5 {[%clk 0:01:34.4]} 26...
Qe1+ {[%clk 0:02:04]} 27. Qf1 {[%clk 0:01:32.6]} 27... Qd2 {[%clk 0:01:56.3]}
28. Nxc6 {[%clk 0:01:30.4]} 28... Ne8 {[%clk 0:01:49.7]} 29. Ne5 {[%clk
0:01:26.4]} 29... e6 {[%clk 0:01:45.6]} 30. c6 {[%clk 0:01:23.3]} 30... Qc2
{[%clk 0:01:43.6]} 31. h4 {[%clk 0:01:12.7]} 31... f6 {[%clk 0:01:41.1]} 32. Nd7
{[%clk 0:01:11.5]} 32... Be7 {[%clk 0:01:41.4]} 33. Qa6 {[%clk 0:01:07.4]} 33...
Qd1+ {[%clk 0:01:41.6]} 34. Kh2 {[%clk 0:01:07]} 34... Qe1 {[%clk 0:01:39.4]}
35. Qa2 {[%clk 0:00:52]} 35... Qc1 {[%clk 0:01:19.9]} 36. Qa8 {[%clk 0:00:51.2]}
36... Kf7 {[%clk 0:01:17.6]} 37. Nb6 {[%clk 0:00:39.6]} 37... Qc2 {[%clk
0:01:12.4]} 38. Kg1 {[%clk 0:00:37.7]} 38... Qc1+ {[%clk 0:01:10.9]} 39. Bf1
{[%clk 0:00:37.8]} 39... Bd6 {[%clk 0:01:02.8]} 40. Qb7+ {[%clk 0:00:37.1]}
40... Be7 {[%clk 0:01:00.5]} 41. Nc8 {[%clk 0:00:37.2]} 41... Nd6 {[%clk
0:00:54]} 42. Qxe7+ {[%clk 0:00:36.3]} 1-0

[Event "Early-Titled-Tuesday-Blitz-June-18-2024"]
[Site "Chess.com"]
[Date "2024.06.18"]
[Round "6"]
[White "penguingm1"]
[Black "Rodalquilar"]
[Result "0-1"]
[WhiteElo "2947"]
[BlackElo "2812"]
[TimeControl "180+1"]
[EndTime "9:08:15 PDT"]
[Termination "Rodalquilar won on time"]

1. d4 {[%clk 0:03:00.9]} 1... d5 {[%clk 0:02:59.8]} 2. Bf4 {[%clk 0:03:00.9]}
2... Bf5 {[%clk 0:02:57.4]} 3. Nf3 {[%clk 0:03:00.4]} 3... Nf6 {[%clk
0:02:56.6]} 4. c4 {[%clk 0:03:00.8]} 4... e6 {[%clk 0:02:56.4]} 5. Qb3 {[%clk
0:03:01.3]} 5... Nc6 {[%clk 0:02:49.3]} 6. c5 {[%clk 0:02:58.2]} 6... Na5 {[%clk
0:02:29.1]} 7. Qa4+ {[%clk 0:02:32.3]} 7... c6 {[%clk 0:02:29.4]} 8. e3 {[%clk
0:02:30.7]} 8... b5 {[%clk 0:02:28.4]} 9. Qd1 {[%clk 0:02:26.7]} 9... Nc4 {[%clk
0:02:15.2]} 10. b3 {[%clk 0:02:24.4]} 10... Qa5+ {[%clk 0:02:14.9]} 11. Nbd2
{[%clk 0:02:07.5]} 11... Na3 {[%clk 0:01:56]} 12. Rc1 {[%clk 0:02:05.6]} 12...
Ne4 {[%clk 0:01:55.2]} 13. Be2 {[%clk 0:01:14.1]} 13... Nc3 {[%clk 0:01:47.5]}
14. Rxc3 {[%clk 0:01:14]} 14... Qxc3 {[%clk 0:01:48.4]} 15. O-O {[%clk
0:01:14.5]} 15... a5 {[%clk 0:01:39.2]} 16. Ne5 {[%clk 0:01:09.4]} 16... Rc8
{[%clk 0:01:30.9]} 17. e4 {[%clk 0:00:15.1]} 17... Bxe4 {[%clk 0:01:14.9]} 18.
Nxe4 {[%clk 0:00:13.6]} 18... dxe4 {[%clk 0:01:15.8]} 19. Bc1 {[%clk 0:00:06.8]}
19... Nc2 {[%clk 0:01:05.1]} 20. Bd2 {[%clk 0:00:03]} 20... Qxd4 {[%clk
0:00:58.5]} 21. Nxc6 {[%clk 0:00:02.8]} 21... Rxc6 {[%clk 0:00:59.2]} 22. Qxc2
{[%clk 0:00:03.3]} 22... Rxc5 {[%clk 0:00:49.4]} 23. Bxb5+ {[%clk 0:00:02.6]}
23... Rxb5 {[%clk 0:00:41.2]} 24. Be3 {[%clk 0:00:03]} 24... Qd7 {[%clk
0:00:39.3]} 0-1

[Event "Early-Titled-Tuesday-Blitz-June-18-2024"]
[Site "Chess.com"]
[Date "2024.06.18"]
[Round "6"]
[White "WilliamAlfaroCaracas"]
[Black "abelmat"]
[Result "1-0"]
[WhiteElo "2340"]
[BlackElo "2043"]
[TimeControl "180+1"]
[EndTime "9:08:22 PDT"]
[Termination "WilliamAlfaroCaracas won on time"]

1. e4 {[%clk 0:03:00.9]} 1... e6 {[%clk 0:02:56.1]} 2. d4 {[%clk 0:02:54.4]}
2... d5 {[%clk 0:02:55.8]} 3. exd5 {[%clk 0:02:54.4]} 3... exd5 {[%clk
0:02:55.3]} 4. Nf3 {[%clk 0:02:55.3]} 4... Nf6 {[%clk 0:02:53]} 5. Bd3 {[%clk
0:02:52.7]} 5... c5 {[%clk 0:02:50.5]} 6. O-O {[%clk 0:02:44.6]} 6... Be7 {[%clk
0:02:50.3]} 7. h3 {[%clk 0:02:42.1]} 7... O-O {[%clk 0:02:50.1]} 8. dxc5 {[%clk
0:02:37.1]} 8... Bxc5 {[%clk 0:02:49.3]} 9. Bg5 {[%clk 0:02:35.3]} 9... Nc6
{[%clk 0:02:47.9]} 10. Nc3 {[%clk 0:02:31.8]} 10... Be6 {[%clk 0:02:47.9]} 11.
Re1 {[%clk 0:02:27.5]} 11... h6 {[%clk 0:02:46.7]} 12. Bh4 {[%clk 0:02:26.8]}
12... a6 {[%clk 0:02:40.4]} 13. Ne2 {[%clk 0:02:19.5]} 13... Re8 {[%clk
0:02:36.7]} 14. Nf4 {[%clk 0:02:15.4]} 14... Rc8 {[%clk 0:02:22.6]} 15. Nxe6
{[%clk 0:02:12.4]} 15... fxe6 {[%clk 0:02:12.7]} 16. Qd2 {[%clk 0:02:09.3]}
16... e5 {[%clk 0:01:56.9]} 17. Bg6 {[%clk 0:02:04.1]} 17... Rf8 {[%clk
0:01:25.1]} 18. Bf5 {[%clk 0:01:57.1]} 18... e4 {[%clk 0:01:08.9]} 19. Bxc8
{[%clk 0:01:13.1]} 19... Qxc8 {[%clk 0:00:13.4]} 20. Nh2 {[%clk 0:00:59.7]}
20... Qf5 {[%clk 0:00:11.6]} 21. Rad1 {[%clk 0:00:47.1]} 21... Nh5 {[%clk
0:00:10.3]} 22. Qxd5+ {[%clk 0:00:42.9]} 22... Qxd5 {[%clk 0:00:04.6]} 23. Rxd5
{[%clk 0:00:43.8]} 23... g5 {[%clk 0:00:02.8]} 24. Rxc5 {[%clk 0:00:43.2]} 24...
gxh4 {[%clk 0:00:02.6]} 25. Rxh5 {[%clk 0:00:43.2]} 1-0